bitfinex/quotes_BTCUSD_20240902
["timestamp","ask_amount","ask_price","bid_price","bid_amount"]
[1725279159324,0.512592,58526.0,58525.0,0.15126823]
[1725279159564,0.85432,58526.0,58525.0,0.1]
[1725279160094,0.85432,58526.0,58517.0,0.47994557]
[1725279160095,0.01,58499.0,58494.0,0.12820648]
[1725279160357,0.553048,58474.0,58473.0,0.50540786]
[1725279160592,1.759544,58474.0,58473.0,0.50540786]
[1725279160820,1.759544,58474.0,58467.0,0.00012]
[1725279160821,1.07551,58472.0,58467.0,0.00012]
[1725279161078,2.56432688,58472.0,58467.0,0.00012]
[1725279161307,1.749701,58468.0,58467.0,0.00012]
[1725279161765,1.8775047,58468.0,58467.0,0.00012]
[1725279161980,1.026411,58456.0,58455.0,0.01099199]
[1725279162241,0.86600756,58456.0,58455.0,0.01099199]
[1725279163198,0.52387056,58456.0,58455.0,0.01099199]
[1725279164919,0.18173356,58456.0,58455.0,0.01099199]
[1725279165166,0.2506,58483.0,58455.0,0.01099199]
[1725279165400,0.2506,58483.0,58460.0,0.171054]
[1725279165401,0.67641486,58478.0,58460.0,0.171054]
[1725279165647,0.341955,58488.0,58462.0,0.30082316]
[1725279165888,0.2394,58493.0,58462.0,0.27605]
[1725279166143,0.341954,58488.0,58466.0,0.171038]
[1725279166381,0.341954,58488.0,58467.0,0.1]
[1725279166820,0.170985,58485.0,58469.0,0.171029]
[1725279167047,0.170972,58489.0,58470.0,0.1]
[1725279167302,0.2394,58493.0,58470.0,0.1]
[1725279167303,0.410363,58493.0,58477.0,0.171006]
[1725279167556,0.341907,58496.0,58478.0,0.171002]
[1725279167790,0.170976,58488.0,58471.0,0.1326]
[1725279168004,0.170979,58487.0,58473.0,0.171016]
[1725279168267,0.19779149,58491.0,58474.0,0.1]
[1725279168492,0.170973,58489.0,58474.0,0.271013]
[1725279168742,0.170978,58487.0,58474.0,0.1]
[1725279168962,0.06101759,58491.0,58474.0,0.1]
[1725279169185,0.170987,58484.0,58474.0,0.1]
[1725279169422,0.02682449,58491.0,58472.0,0.1]
[1725279169662,0.170984,58485.0,58473.0,0.171017]
[1725279169901,0.170987,58484.0,58474.0,0.1]
[1725279170809,0.341945,58489.0,58474.0,0.1]
[1725279171036,0.03687695,58488.0,58472.0,0.1]
[1725279171477,0.171,58480.0,58472.0,0.1]
[1725279171479,0.170994,58482.0,58472.0,0.1]
[1725279171713,0.341969,58485.0,58472.0,0.442039]
[1725279171945,0.02682449,58491.0,58472.0,0.442039]
[1725279172174,0.170988,58484.0,58474.0,0.171015]
[1725279172392,0.170989,58483.0,58475.0,0.271013]
[1725279172612,0.341952,58488.0,58476.0,0.171008]
[1725279172841,0.170984,58485.0,58475.0,0.1]
[1725279173317,0.170984,58485.0,58476.0,0.342018]
[1725279173787,0.170984,58485.0,58476.0,0.513026]
[1725279174002,0.341963,58486.0,58475.0,0.271012]
[1725279174231,0.170985,58485.0,58477.0,0.171006]
[1725279174447,0.170981,58486.0,58479.0,0.171]
[1725279174672,0.341949,58489.0,58477.0,0.342013]
[1725279174673,0.170984,58485.0,58477.0,0.342013]
[1725279174904,0.170987,58484.0,58477.0,0.171006]
[1725279175145,0.17099,58483.0,58475.0,0.271011]
[1725279175348,0.341958,58487.0,58475.0,0.271011]
[1725279175349,0.341968,58485.0,58477.0,0.171004]
[1725279175576,0.170989,58483.0,58477.0,0.171004]
[1725279175789,0.34198,58483.0,58476.0,0.17101]
[1725279176021,0.170995,58481.0,58476.0,0.17101]
[1725279176236,0.170995,58481.0,58475.0,0.1]
[1725279176455,0.170995,58481.0,58474.0,0.1]
[1725279176672,0.170997,58481.0,58472.0,0.1]
[1725279176919,0.171005,58478.0,58472.0,0.1]
[1725279177396,0.171007,58477.0,58472.0,0.1]
[1725279177610,0.17101,58476.0,58472.0,0.1]
[1725279177840,0.341999,58480.0,58472.0,0.1]
[1725279177841,0.171005,58478.0,58472.0,0.1]
[1725279178734,0.17101,58476.0,58472.0,0.1]
[1725279179022,0.02682548,58485.0,58472.0,0.1]
[1725279179023,0.513057,58473.0,58472.0,0.1]
[1725279179225,0.02776407,58475.0,58458.0,0.1379]
[1725279179456,0.2786,58484.0,58459.0,0.60540786]
[1725279179457,0.171051,58462.0,58459.0,0.60540786]
[1725279179688,0.2786,58484.0,58459.0,0.60540786]
[1725279179689,0.171057,58460.0,58459.0,0.1]
[1725279179941,0.513171,58460.0,58459.0,0.1]
[1725279180190,0.342109,58461.0,58455.0,0.01099199]
[1725279180435,0.342065,58469.0,58455.0,0.18206199]
[1725279180664,0.0268323,58478.0,58456.0,0.00342106]
[1725279180665,0.342049,58472.0,58456.0,0.00342106]
[1725279180890,0.03054255,58483.0,58460.0,0.171056]
[1725279181149,0.03054255,58483.0,58455.0,0.01099199]
[1725279181150,0.171041,58466.0,58458.0,0.171062]
[1725279181397,0.513171,58460.0,58459.0,0.1]
[1725279181624,0.171053,58462.0,58455.0,0.01099199]
[1725279181859,0.171053,58462.0,58455.0,0.11099199]
[1725279182101,0.171052,58462.0,58455.0,0.28206199]
[1725279182325,0.171052,58462.0,58455.0,0.11099199]
[1725279182326,0.171051,58462.0,58455.0,0.11099199]
[1725279182563,0.171049,58463.0,58455.0,0.28206299]
[1725279182808,0.171055,58461.0,58455.0,0.11099199]
[1725279183054,0.36890046,58469.0,58456.0,0.171068]
[1725279183055,0.171049,58463.0,58456.0,0.171068]
[1725279183292,0.02683346,58469.0,58457.0,0.1]
[1725279183531,0.171062,58458.0,58455.0,0.11099199]
[1725279183786,0.171068,58456.0,58455.0,0.11099199]
[1725279184015,0.513205,58456.0,58455.0,0.11099199]
[1725279184253,0.171068,58456.0,58455.0,0.11099199]
[1725279184495,0.342109,58461.0,58455.0,0.01099199]
[1725279184726,0.342113,58461.0,58455.0,0.01099199]
[1725279184969,0.171062,58459.0,58455.0,0.11099199]
[1725279185219,0.171063,58458.0,58455.0,0.11099199]
[1725279185697,0.342104,58462.0,58455.0,0.11099199]
[1725279185929,0.171063,58458.0,58455.0,0.11099199]
[1725279186159,0.171063,58458.0,58456.0,0.1]
[1725279186391,0.34212,58459.0,58455.0,0.01099199]
[1725279186678,0.171064,58458.0,58455.0,0.01099199]
[1725279187135,0.171063,58458.0,58455.0,0.01099199]
[1725279188280,0.171065,58457.0,58455.0,0.01099199]
[1725279188504,0.342127,58458.0,58455.0,0.01099199]
[1725279188733,0.171068,58456.0,58455.0,0.01099199]
[1725279189903,0.513205,58456.0,58455.0,0.01099199]
[1725279190137,0.855342,58456.0,58455.0,0.01099199]
[1725279190366,0.342068,58468.0,58455.0,0.01099199]
[1725279190621,0.34213,58458.0,58455.0,0.01099199]
[1725279190843,0.02683346,58469.0,58455.0,0.18206199]
[1725279191087,0.171062,58458.0,58456.0,0.1]
[1725279191309,0.342121,58459.0,58456.0,0.1]
[1725279191310,0.513196,58457.0,58456.0,0.1]
[1725279191785,0.171065,58457.0,58456.0,0.1]
[1725279192039,0.513196,58457.0,58456.0,0.1]
[1725279192287,0.853627,58457.0,58456.0,0.1]
[1725279192516,0.513205,58456.0,58455.0,0.01099199]
[1725279193248,0.171068,58456.0,58455.0,0.01099199]
[1725279193730,0.513205,58456.0,58455.0,0.01099199]
[1725279193975,0.512605,58456.0,58455.0,0.01099199]
[1725279195482,0.854742,58456.0,58455.0,0.01099199]
[1725279195719,0.512605,58456.0,58455.0,0.01099199]
[1725279195962,0.342112,58461.0,58455.0,0.01099199]
[1725279195963,0.342112,58461.0,58456.0,0.171067]
[1725279196199,0.171061,58459.0,58457.0,0.1]
[1725279196447,0.17106,58459.0,58457.0,0.1]
[1725279196701,0.171062,58458.0,58457.0,0.1]
[1725279196953,0.513187,58458.0,58457.0,0.1]
[1725279197173,0.171066,58457.0,58455.0,0.01099199]
[1725279197636,0.342125,58458.0,58455.0,0.11099199]
[1725279197881,0.171063,58458.0,58455.0,0.28206199]
[1725279198138,0.171065,58457.0,58455.0,0.11099199]
[1725279198373,0.17106,58459.0,58456.0,0.171067]
[1725279198607,0.171062,58458.0,58457.0,0.1]
[1725279198849,0.513187,58458.0,58457.0,0.1]
[1725279199806,0.342115,58460.0,58455.0,0.01599199]
[1725279200286,0.171068,58457.0,58455.0,0.01599199]
[1725279200519,0.171063,58458.0,58455.0,0.18706299]
[1725279200752,0.171063,58458.0,58455.0,0.28706299]
[1725279200976,0.342115,58460.0,58455.0,0.28706299]
[1725279200977,0.513205,58456.0,58455.0,0.01599199]
[1725279203314,0.171068,58456.0,58455.0,0.01599199]
[1725279203762,0.855342,58456.0,58455.0,0.01599199]
[1725279204888,0.01,58449.0,58440.0,0.04319391]
[1725279205135,0.1433,58455.0,58416.0,0.50540786]
[1725279205136,0.171136,58433.0,58416.0,0.50540786]
[1725279205361,0.022,58437.0,58416.0,0.50540786]
[1725279205362,0.855797,58425.0,58416.0,0.50540786]
[1725279205586,0.855915,58417.0,58416.0,0.50540786]
[1725279205811,1.198281,58417.0,58416.0,0.50540786]
[1725279206054,0.0069,58428.0,58407.0,0.496621]
[1725279206289,0.171197,58412.0,58407.0,0.1542]
[1725279206502,0.513592,58412.0,58407.0,0.1542]
[1725279206718,0.342379,58415.0,58407.0,0.1542]
[1725279206944,0.171186,58416.0,58410.0,0.171203]
[1725279207166,0.397281,58432.0,58407.0,0.1542]
[1725279207167,0.171184,58417.0,58407.0,0.1542]
[1725279207389,0.397281,58432.0,58407.0,0.1542]
[1725279207610,0.43969458,58432.0,58413.0,0.171193]
[1725279207834,0.171184,58417.0,58410.0,0.342403]
[1725279208056,0.342328,58424.0,58411.0,0.2716]
[1725279208057,0.171186,58416.0,58411.0,0.2716]
[1725279208274,0.34237,58417.0,58411.0,0.1004]
[1725279208503,0.171183,58417.0,58411.0,0.1004]
[1725279208703,0.342348,58420.0,58413.0,0.171193]
[1725279208918,0.342335,58423.0,58411.0,0.1004]
[1725279209128,0.171192,58414.0,58411.0,0.1004]
[1725279209785,0.342352,58420.0,58412.0,0.171196]
[1725279210007,0.342355,58419.0,58411.0,0.1004]
[1725279210250,0.342302,58428.0,58411.0,0.0004]
[1725279210501,0.055,58432.0,58412.0,0.342393]
[1725279210502,0.342315,58426.0,58412.0,0.342393]
[1725279210731,0.342339,58422.0,58414.0,0.171191]
[1725279210962,0.342339,58422.0,58413.0,0.171193]
[1725279211202,0.342339,58422.0,58415.0,0.171187]
[1725279211416,0.342339,58422.0,58414.0,0.17119]
[1725279211417,0.171178,58419.0,58414.0,0.17119]
[1725279211665,0.342339,58422.0,58414.0,0.17119]
[1725279211666,0.171182,58418.0,58414.0,0.17119]
[1725279211895,0.342339,58422.0,58411.0,0.0004]
[1725279211896,0.02685227,58424.0,58411.0,0.0004]
[1725279212133,0.171177,58420.0,58412.0,0.342392]
[1725279212365,0.171177,58419.0,58413.0,0.1]
[1725279212601,0.171177,58419.0,58411.0,0.0004]
[1725279212602,0.17117,58422.0,58417.0,0.171182]
[1725279212835,0.02685227,58424.0,58414.0,0.344381]
[1725279213070,0.171172,58421.0,58417.0,0.171182]
[1725279213289,0.171171,58421.0,58417.0,0.149]
[1725279213511,0.171171,58421.0,58417.0,0.320182]
[1725279213728,0.02685227,58424.0,58417.0,0.320182]
[1725279213729,0.171175,58420.0,58417.0,0.320182]
[1725279214162,0.171175,58420.0,58417.0,0.149]
[1725279214670,0.171172,58421.0,58417.0,0.149]
[1725279214901,0.02685227,58424.0,58417.0,0.320181]
[1725279215092,0.171172,58421.0,58417.0,0.320181]
[1725279215357,0.171169,58422.0,58418.0,0.171179]
[1725279215806,0.171169,58422.0,58417.0,0.149]
[1725279216039,0.342331,58423.0,58418.0,0.1]
[1725279216266,0.171171,58421.0,58418.0,0.1]
[1725279216668,0.513498,58423.0,58418.0,0.1]
[1725279216922,0.342331,58423.0,58418.0,0.1]
[1725279217141,0.171169,58422.0,58418.0,0.1]
[1725279217359,0.171166,58423.0,58418.0,0.27118]
[1725279217590,0.17117,58422.0,58418.0,0.1]
[1725279217817,0.513498,58423.0,58418.0,0.1]
[1725279218071,0.02685227,58424.0,58419.0,0.1255]
[1725279218340,0.342307,58427.0,58419.0,0.296676]
[1725279218568,0.171161,58425.0,58420.0,0.171173]
[1725279218794,0.171167,58423.0,58419.0,0.296676]
[1725279219024,0.342316,58426.0,58421.0,0.171169]
[1725279219025,0.17116,58425.0,58421.0,0.171169]
[1725279219271,0.171153,58428.0,58419.0,0.1255]
[1725279219519,0.342304,58428.0,58420.0,0.1]
[1725279219972,0.171166,58423.0,58420.0,0.1]
[1725279220627,0.513486,58425.0,58420.0,0.271174]
[1725279220856,0.171163,58424.0,58420.0,0.271174]
[1725279221327,0.342232,58440.0,58420.0,0.271174]
[1725279221328,0.171122,58438.0,58434.0,0.171132]
[1725279221595,0.02685039,58442.0,58441.0,0.663937]
[1725279221804,0.342116,58460.0,58441.0,0.1506]
[1725279222031,0.2671,58463.0,58442.0,0.10342167]
[1725279222286,0.342103,58462.0,58450.0,0.342167]
[1725279222501,0.171061,58459.0,58453.0,0.171076]
[1725279222722,0.171061,58459.0,58451.0,0.342163]
[1725279222723,0.342103,58462.0,58454.0,0.171074]
[1725279222948,0.171058,58460.0,58455.0,0.17107]
[1725279223179,0.171061,58459.0,58449.0,0.342175]
[1725279223432,0.171061,58459.0,58453.0,0.171075]
[1725279223612,0.342116,58460.0,58453.0,0.171075]
[1725279223884,0.342123,58459.0,58449.0,0.342175]
[1725279224096,0.342128,58458.0,58446.0,0.342194]
[1725279224319,0.342128,58458.0,58449.0,0.171087]
[1725279224537,0.171073,58455.0,58449.0,0.171087]
[1725279224753,0.171074,58454.0,58449.0,0.171087]
[1725279224975,0.171074,58454.0,58450.0,0.171085]
[1725279225915,0.17108,58453.0,58447.0,0.342188]
[1725279226185,0.17108,58453.0,58449.0,0.171089]
[1725279226403,0.17108,58453.0,58448.0,0.1]
[1725279226630,0.17108,58453.0,58448.0,0.271091]
[1725279227313,0.17108,58453.0,58449.0,0.171088]
[1725279227743,0.17108,58452.0,58448.0,0.1]
[1725279227992,0.171088,58450.0,58448.0,0.1]
[1725279228231,0.171089,58449.0,58447.0,0.1]
[1725279228714,0.171086,58451.0,58446.0,0.1]
[1725279228930,0.342133,58457.0,58448.0,0.342184]
[1725279229153,0.342137,58456.0,58451.0,0.171082]
[1725279229593,0.171075,58454.0,58449.0,0.342175]
[1725279229857,0.171075,58454.0,58450.0,0.171086]
[1725279230089,0.171075,58454.0,58451.0,0.293983]
[1725279230322,0.171075,58454.0,58451.0,0.1229]
[1725279233111,0.171085,58451.0,58447.0,0.171093]
[1725279233344,0.17108,58453.0,58448.0,0.271091]
[1725279233568,0.171083,58451.0,58448.0,0.271091]
[1725279234028,0.342152,58454.0,58449.0,0.171089]
[1725279234266,0.171078,58453.0,58448.0,0.44218]
[1725279234496,0.171076,58454.0,58448.0,0.44218]
[1725279234735,0.513226,58454.0,58449.0,0.171086]
[1725279234988,0.342149,58454.0,58449.0,0.171086]
[1725279235214,0.171078,58453.0,58450.0,0.171086]
[1725279235438,0.171078,58453.0,58452.0,0.1416]
[1725279235666,0.171075,58454.0,58452.0,0.1416]
[1725279235911,0.342138,58456.0,58452.0,0.1416]
[1725279235912,0.171072,58455.0,58452.0,0.1416]
[1725279236148,0.171077,58453.0,58452.0,0.1416]
[1725279236406,0.171075,58454.0,58452.0,0.1416]
[1725279236860,0.171072,58455.0,58452.0,0.312679]
[1725279237086,0.17107,58456.0,58452.0,0.312679]
[1725279237307,0.17107,58456.0,58453.0,0.171076]
[1725279237528,0.342137,58456.0,58452.0,0.31268]
[1725279237743,0.171072,58455.0,58452.0,0.31268]
[1725279238185,0.171067,58457.0,58452.0,0.1416]
[1725279238413,0.36895682,58459.0,58453.0,0.342154]
[1725279238624,0.171066,58457.0,58454.0,0.171074]
[1725279239287,0.02683682,58459.0,58455.0,0.171071]
[1725279239516,0.19789782,58459.0,58455.0,0.171071]
[1725279239979,0.02683682,58459.0,58454.0,0.342147]
[1725279240315,0.171063,58458.0,58455.0,0.171071]
[1725279240429,0.490974,58467.0,58452.0,0.1416]
[1725279240430,0.342091,58464.0,58452.0,0.1416]
[1725279240646,0.171055,58461.0,58458.0,0.171062]
[1725279240882,0.171055,58461.0,58457.0,0.171065]
[1725279241333,0.171055,58461.0,58458.0,0.171062]
[1725279241580,0.171055,58461.0,58457.0,0.171065]
[1725279241817,0.171053,58462.0,58458.0,0.17106]
[1725279242724,0.171057,58460.0,58456.0,0.171067]
[1725279242941,0.342104,58462.0,58455.0,0.342139]
[1725279243183,0.171055,58461.0,58457.0,0.171065]
[1725279243417,0.171055,58461.0,58456.0,0.1]
[1725279243534,0.171055,58461.0,58458.0,0.171062]
[1725279243762,0.171051,58462.0,58458.0,0.171062]
[1725279244227,0.17105,58463.0,58459.0,0.171057]
[1725279244449,0.342092,58464.0,58459.0,0.171057]
[1725279244705,0.171052,58462.0,58459.0,0.171057]
[1725279244945,0.171052,58462.0,58458.0,0.171062]
[1725279245613,0.3421,58463.0,58457.0,0.171065]
[1725279245829,0.171051,58462.0,58456.0,0.442133]
[1725279246059,0.171055,58461.0,58458.0,0.171061]
[1725279246476,0.171055,58461.0,58457.0,0.171065]
[1725279246689,0.171055,58461.0,58458.0,0.171062]
[1725279247537,0.171057,58460.0,58457.0,0.171065]
[1725279247841,0.342107,58462.0,58458.0,0.171062]
[1725279248249,0.3421,58463.0,58457.0,0.171065]
[1725279248250,0.171055,58461.0,58457.0,0.171065]
[1725279248631,0.171058,58460.0,58456.0,0.271068]
[1725279249349,0.171058,58460.0,58457.0,0.171065]
[1725279250201,0.17106,58459.0,58456.0,0.271068]
[1725279250454,0.02683366,58467.0,58452.0,0.1416]
[1725279250689,0.513223,58454.0,58453.0,0.1]
[1725279250897,0.171096,58447.0,58446.0,0.60540786]
[1725279251125,0.171096,58447.0,58446.0,0.1]
[1725279251839,0.342172,58451.0,58446.0,0.1]
[1725279252059,0.171085,58451.0,58448.0,0.171091]
[1725279252293,0.17107,58456.0,58452.0,0.171079]
[1725279252527,0.17107,58456.0,58451.0,0.342165]
[1725279252528,0.17107,58456.0,58453.0,0.271077]
[1725279252758,0.342113,58461.0,58453.0,0.10342131]
[1725279252989,0.17106,58459.0,58456.0,0.171067]
[1725279253204,0.17106,58459.0,58456.0,0.296868]
[1725279253427,0.17106,58459.0,58456.0,0.1258]
[1725279253632,0.171063,58458.0,58457.0,0.1511]
[1725279254289,0.171062,58458.0,58457.0,0.1511]
[1725279254952,0.02683407,58467.0,58453.0,0.1]
[1725279255165,0.02683407,58467.0,58453.0,0.271077]
[1725279255446,0.171066,58457.0,58453.0,0.271077]
[1725279256806,0.171066,58457.0,58454.0,0.171074]
[1725279257020,0.171074,58454.0,58453.0,0.1]
[1725279257229,0.513223,58454.0,58453.0,0.1]
[1725279257656,0.171074,58454.0,58453.0,0.1]
[1725279258294,0.171074,58454.0,58451.0,0.1]
[1725279258506,0.342133,58457.0,58452.0,0.171079]
[1725279258686,0.171073,58455.0,58453.0,0.1]
[1725279259136,0.171067,58457.0,58453.0,0.271076]
[1725279259348,0.342094,58464.0,58456.0,0.171067]
[1725279259349,0.171059,58460.0,58456.0,0.171067]
[1725279260236,0.51316,58462.0,58457.0,0.325763]
[1725279260525,0.36890807,58467.0,58460.0,0.171056]
[1725279260758,0.171052,58462.0,58459.0,0.171058]
[1725279261856,0.171052,58462.0,58459.0,0.171059]
[1725279262072,0.171052,58462.0,58458.0,0.171062]
[1725279262287,0.171052,58462.0,58459.0,0.171058]
[1725279262716,0.171052,58462.0,58458.0,0.171062]
[1725279263378,0.171052,58462.0,58459.0,0.171059]
[1725279264023,0.34207,58468.0,58461.0,0.342103]
[1725279264260,0.34207,58468.0,58463.0,0.171047]
[1725279264470,0.342043,58473.0,58459.0,0.34553579]
[1725279264471,0.342057,58470.0,58459.0,0.34553579]
[1725279264701,0.342057,58470.0,58466.0,0.171037]
[1725279264702,0.171029,58470.0,58466.0,0.171037]
[1725279264920,0.171027,58471.0,58468.0,0.171033]
[1725279265350,0.342054,58471.0,58466.0,0.171037]
[1725279265592,0.171029,58470.0,58467.0,0.171036]
[1725279265823,0.17103,58469.0,58466.0,0.171038]
[1725279266264,0.17103,58469.0,58467.0,0.1564]
[1725279266475,0.171027,58471.0,58467.0,0.327436]
[1725279266703,0.171027,58470.0,58467.0,0.327436]
[1725279267630,0.171027,58470.0,58467.0,0.1564]
[1725279268050,0.171027,58470.0,58467.0,0.327436]
[1725279268260,0.171027,58470.0,58467.0,0.1564]
[1725279268931,0.342046,58472.0,58467.0,0.327435]
[1725279269149,0.171024,58471.0,58468.0,0.171033]
[1725279269380,0.171024,58471.0,58467.0,0.1564]
[1725279269381,0.171028,58470.0,58467.0,0.327435]
[1725279269598,0.342046,58472.0,58467.0,0.327435]
[1725279269821,0.171025,58471.0,58468.0,0.171033]
[1725279270037,0.171028,58470.0,58467.0,0.1564]
[1725279270254,0.171028,58470.0,58467.0,0.327436]
[1725279270476,0.171023,58472.0,58468.0,0.171032]
[1725279270766,0.171019,58473.0,58469.0,0.17103]
[1725279270979,0.171022,58472.0,58469.0,0.17103]
[1725279271882,0.171019,58473.0,58470.0,0.171026]
[1725279272324,0.171023,58472.0,58469.0,0.17103]
[1725279273225,0.342033,58474.0,58467.0,0.498469]
[1725279273441,0.342045,58472.0,58468.0,0.171033]
[1725279273672,0.171025,58471.0,58468.0,0.171033]
[1725279273876,0.171025,58471.0,58467.0,0.327436]
[1725279274755,0.171025,58471.0,58468.0,0.171033]
[1725279275379,0.342033,58474.0,58468.0,0.342066]
[1725279275609,0.171019,58473.0,58469.0,0.1242]
[1725279275854,0.02683062,58476.0,58474.0,0.171015]
[1725279276068,0.02683062,58476.0,58475.0,0.171013]
[1725279276320,0.02683062,58476.0,58473.0,0.342037]
[1725279276321,0.171005,58478.0,58474.0,0.171016]
[1725279276531,0.342004,58479.0,58473.0,0.342037]
[1725279276532,0.171001,58479.0,58473.0,0.342037]
[1725279276752,0.342005,58479.0,58473.0,0.342037]
[1725279276981,0.171002,58479.0,58475.0,0.171012]
[1725279277214,0.341994,58481.0,58477.0,0.171006]
[1725279277215,0.170996,58481.0,58477.0,0.171006]
[1725279277444,0.170998,58480.0,58478.0,0.1434]
[1725279277662,0.341922,58493.0,58478.0,0.1434]
[1725279277888,0.170999,58480.0,58478.0,0.1434]
[1725279278341,0.171001,58479.0,58478.0,0.1434]
[1725279278972,0.170999,58480.0,58478.0,0.1434]
[1725279279209,0.170996,58481.0,58478.0,0.1434]
[1725279279418,0.170996,58481.0,58478.0,0.314403]
[1725279279887,0.170999,58480.0,58478.0,0.1434]
[1725279282594,0.171001,58479.0,58478.0,0.1434]
[1725279282840,0.341985,58482.0,58478.0,0.1434]
[1725279283045,0.170999,58480.0,58478.0,0.1434]
[1725279283697,0.341985,58482.0,58478.0,0.1434]
[1725279283698,0.171001,58479.0,58478.0,0.1434]
[1725279284129,0.170999,58480.0,58478.0,0.1434]
[1725279285003,0.170995,58482.0,58478.0,0.1434]
[1725279285233,0.17099,58483.0,58478.0,0.314404]
[1725279285455,0.341972,58485.0,58478.0,0.314404]
[1725279285456,0.170995,58482.0,58478.0,0.314403]
[1725279285679,0.170993,58482.0,58479.0,0.171001]
[1725279286840,0.170989,58483.0,58479.0,0.171001]
[1725279287072,0.34198,58483.0,58478.0,0.314403]
[1725279287294,0.341972,58485.0,58478.0,0.485408]
[1725279287512,0.170994,58482.0,58479.0,0.171001]
[1725279287951,0.170994,58482.0,58478.0,0.1434]
[1725279287952,0.170994,58482.0,58478.0,0.314403]
[1725279288812,0.171001,58479.0,58478.0,0.1434]
[1725279289033,0.342003,58479.0,58473.0,0.171017]
[1725279289246,0.171007,58477.0,58473.0,0.171017]
[1725279289908,0.17101,58476.0,58473.0,0.171017]
[1725279291431,0.17101,58476.0,58471.0,0.491847]
[1725279291638,0.17101,58476.0,58472.0,0.271021]
[1725279291852,0.171013,58475.0,58472.0,0.1]
[1725279292059,0.171013,58475.0,58472.0,0.27102]
[1725279292505,0.171013,58475.0,58472.0,0.1]
[1725279292506,0.342029,58475.0,58472.0,0.1]
[1725279292729,0.171019,58473.0,58472.0,0.1]
[1725279294104,0.171014,58475.0,58472.0,0.1]
[1725279295608,0.171014,58475.0,58472.0,0.095]
[1725279296056,0.342018,58477.0,58472.0,0.266021]
[1725279296269,0.171012,58476.0,58472.0,0.266021]
[1725279297148,0.17101,58476.0,58472.0,0.266021]
[1725279297621,0.17101,58476.0,58473.0,0.171018]
[1725279298279,0.171008,58477.0,58473.0,0.171018]
[1725279298947,0.171008,58477.0,58474.0,0.171016]
[1725279299620,0.171008,58477.0,58473.0,0.171018]
[1725279300305,0.171008,58477.0,58474.0,0.171016]
[1725279300512,0.171008,58477.0,58473.0,0.171018]
[1725279300721,0.171008,58477.0,58474.0,0.01286091]
[1725279300931,0.171008,58477.0,58473.0,0.18387891]
[1725279301365,0.171002,58479.0,58473.0,0.18387891]
[1725279301639,0.171002,58479.0,58474.0,0.01286091]
[1725279301844,0.171002,58479.0,58474.0,0.18387591]
[1725279302063,0.341986,58482.0,58472.0,0.437041]
[1725279302274,0.170996,58481.0,58476.0,0.171009]
[1725279302492,0.170998,58480.0,58475.0,0.171013]
[1725279303020,0.170995,58481.0,58476.0,0.17101]
[1725279303230,0.170996,58481.0,58476.0,0.171009]
[1725279303441,0.170996,58481.0,58477.0,0.171007]
[1725279304328,0.461356,58487.0,58477.0,0.342013]
[1725279304547,0.17099,58483.0,58478.0,0.342005]
[1725279304775,0.512954,58485.0,58480.0,0.170995]
[1725279305003,0.170988,58484.0,58480.0,0.170998]
[1725279305237,0.17099,58483.0,58480.0,0.170998]
[1725279305519,0.341917,58494.0,58481.0,0.2623]
[1725279305760,0.341913,58495.0,58485.0,0.341968]
[1725279305985,0.341913,58495.0,58486.0,0.341961]
[1725279306240,0.341913,58495.0,58482.0,0.01286027]
[1725279306241,0.170961,58493.0,58489.0,0.170972]
[1725279306467,0.170963,58492.0,58488.0,0.170974]
[1725279306726,0.170957,58494.0,58489.0,0.341944]
[1725279306975,0.170958,58494.0,58489.0,0.512913]
[1725279307212,0.341906,58496.0,58490.0,0.170967]
[1725279307444,0.341906,58496.0,58488.0,0.341946]
[1725279307445,0.341906,58496.0,58491.0,0.170965]
[1725279307915,0.170959,58494.0,58490.0,0.170967]
[1725279308172,0.170955,58495.0,58491.0,0.170964]
[1725279308659,0.341866,58503.0,58490.0,0.1438]
[1725279308885,0.608751,58505.0,58498.0,0.170945]
[1725279308886,0.170935,58502.0,58498.0,0.170945]
[1725279309137,0.608751,58505.0,58499.0,0.170941]
[1725279309328,0.608751,58505.0,58495.0,0.170954]
[1725279309329,0.2669,58505.0,58495.0,0.170954]
[1725279309616,0.2669,58505.0,58492.0,0.341925]
[1725279309860,0.170938,58501.0,58496.0,0.170949]
[1725279310105,0.170932,58503.0,58499.0,0.170942]
[1725279310342,0.608755,58505.0,58497.0,0.341893]
[1725279310343,0.288427,58505.0,58497.0,0.341893]
[1725279310532,0.288427,58505.0,58499.0,0.341885]
[1725279310811,0.170927,58505.0,58501.0,0.170936]
[1725279311053,0.601032,58509.0,58501.0,0.170936]
[1725279311054,0.284615,58509.0,58505.0,0.170923]
[1725279311302,0.02564142,58513.0,58505.0,0.170923]
[1725279311303,0.341807,58513.0,58505.0,0.170924]
[1725279311516,0.170932,58503.0,58498.0,0.170945]
[1725279311953,0.170932,58503.0,58497.0,0.170946]
[1725279311954,0.341859,58504.0,58496.0,0.341898]
[1725279312191,0.341859,58504.0,58492.0,0.1443]
[1725279312192,0.36866048,58508.0,58492.0,0.486221]
[1725279312427,0.36866048,58508.0,58500.0,0.170939]
[1725279312428,0.170925,58505.0,58500.0,0.170939]
[1725279312684,0.36866048,58508.0,58502.0,0.170933]
[1725279312914,0.170926,58505.0,58500.0,0.170938]
[1725279313179,0.170926,58505.0,58499.0,0.341883]
[1725279313180,0.170926,58505.0,58501.0,0.170937]